bitfinex/quotes_ETHUSD_20251206
["timestamp","ask_amount","ask_price","bid_price","bid_amount"]
[1765054746550,0.002,3041.5,3041.4,0.4603]
[1765054746931,0.002,3041.5,3041.4,0.9278]
[1765054748050,0.002,3041.5,3041.4,0.4603]
[1765054750152,0.002,3041.5,3041.4,0.9278]
[1765054757072,0.002,3041.5,3041.1,3.75574224]
[1765054757278,0.002,3041.5,3041.1,3.28824224]
[1765054757464,0.002,3041.5,3041.2,0.4675]
[1765054757776,0.002,3041.5,3041.1,3.75574224]
[1765054758178,0.002,3041.5,3041.2,0.4675]
[1765054771384,0.002,3041.5,3041.2,3.75566247]
[1765054772281,0.002,3041.5,3041.2,0.4675]
[1765054772481,0.002,3041.5,3041.1,3.28823965]
[1765054772684,0.002,3041.5,3041.4,0.4588]
[1765054773067,0.002,3041.5,3041.4,0.9513]
[1765054776191,0.152,3041.5,3041.1,3.28828013]
[1765054776490,0.152,3041.5,3041.0,0.4925]
[1765054776792,1.15114539,3041.4,3041.0,3.78082481]
[1765054777359,1.15114539,3041.4,3041.0,3.28832481]
[1765054777582,1.15114539,3041.4,3041.1,0.4925]
[1765054777787,0.04309814,3041.5,3040.9,3.28845511]
[1765054777955,1.15114539,3041.3,3040.9,3.80645511]
[1765054778282,0.002,3041.5,3041.0,0.4925]
[1765054779862,0.002,3041.5,3041.0,3.78084105]
[1765054780062,0.002,3041.5,3041.1,0.4925]
[1765054783393,0.002,3041.5,3041.1,3.78077806]
[1765054784792,0.002,3041.5,3041.1,3.28827806]
[1765054784976,0.002,3041.5,3041.2,0.4925]
[1765054786996,0.002,3041.5,3040.9,4.29895861]
[1765054787299,0.002,3041.5,3040.9,5.05772556]
[1765054787300,1.15114539,3041.4,3040.9,5.05772556]
[1765054787897,1.15114539,3041.4,3041.0,3.28837802]
[1765054788085,1.15114539,3041.4,3041.0,3.78087802]
[1765054789495,1.15114539,3041.4,3041.0,0.4925]
[1765054789700,1.15114539,3041.2,3040.9,0.518]
[1765054789873,1.15114539,3041.2,3040.8,3.28858754]
[1765054790071,1.15114539,3041.2,3040.9,0.32885875]
[1765054790303,1.15114539,3041.2,3040.9,0.79925875]
[1765054790470,1.15114539,3041.2,3040.9,4.0877463]
[1765054790671,1.15114539,3041.2,3041.0,0.4704]
[1765054791165,1.15114539,3041.4,3041.0,0.4704]
[1765054793019,4.43911455,3041.4,3040.8,4.48456173]
[1765054793179,4.58911455,3041.4,3040.8,4.48456173]
[1765054794006,1.15114539,3041.2,3040.8,4.01416173]
[1765054794173,1.15114539,3041.2,3040.8,4.79624888]
[1765054794374,1.15114539,3041.2,3040.8,5.26664888]
[1765054795704,1.15114539,3041.2,3040.8,4.79624888]
[1765054795877,1.15114539,3041.2,3040.9,0.4704]
[1765054796674,1.15114539,3041.2,3040.9,3.75885988]
[1765054797708,0.15,3041.0,3040.6,0.518]
[1765054797881,0.15,3040.9,3040.6,0.518]
[1765054798082,1.30114539,3041.2,3040.6,0.992]
[1765054798286,1.30114539,3041.2,3040.8,3.28860826]
[1765054799009,1.30114539,3041.2,3040.7,4.01431052]
[1765054799210,1.30114539,3041.2,3040.7,4.84382403]
[1765054799405,1.30114539,3041.2,3040.7,5.31782403]
[1765054799708,1.15114539,3041.2,3040.7,5.31782403]
[1765054800411,1.35114539,3040.8,3040.3,3.76311263]
[1765054800612,1.35114539,3040.8,3040.1,0.7184]
[1765054800613,1.15114539,3040.6,3040.1,0.7184]
[1765054800814,0.15,3040.2,3040.1,0.001]
[1765054800980,0.6475968,3040.2,3040.1,0.001]
[1765054801186,4.00737529,3040.5,3040.1,0.9264]
[1765054801406,0.15,3040.2,3040.1,0.001]
[1765054801781,2.07754539,3040.4,3040.1,0.4524]
[1765054801986,2.07754539,3040.4,3040.1,0.9264]
[1765054802296,0.518,3040.5,3040.1,0.4524]
[1765054802501,1.15114539,3040.4,3040.1,0.9264]
[1765054803012,0.9264,3040.5,3040.3,0.4514]
[1765054803314,1.20114539,3040.8,3040.4,0.4514]
[1765054803713,1.20114539,3040.8,3040.4,0.9254]
[1765054804111,1.15114539,3040.6,3040.4,0.9254]
[1765054804416,1.15114539,3040.6,3040.4,0.4514]
[1765054805510,1.15114539,3040.6,3040.2,0.474]
[1765054808800,1.15114539,3040.6,3040.5,0.4514]
[1765054809001,1.15114539,3040.6,3040.2,0.474]
[1765054811522,1.15114539,3040.6,3040.5,0.4514]
[1765054812023,1.15114539,3040.6,3040.5,0.9254]
[1765054812196,4.43979597,3040.8,3040.5,0.9254]
[1765054812390,5.37953038,3040.8,3040.5,0.9254]
[1765054812596,1.15114539,3040.6,3040.5,0.9254]
[1765054813018,1.15114539,3040.6,3040.5,0.4514]
[1765054813197,1.15114539,3040.6,3040.3,0.474]
[1765054815325,1.30114539,3040.4,3040.1,0.1996]
[1765054815526,1.15114539,3040.4,3040.1,0.6736]
[1765054815828,1.15114539,3040.4,3040.2,0.474]
[1765054816134,0.15,3040.2,3040.1,0.001]
[1765054816625,0.3,3040.2,3040.1,0.001]
[1765054817310,9.91522527,3040.2,3040.1,0.001]
[1765054818745,3.43925728,3040.2,3040.1,0.001]
[1765054819046,3.58925728,3040.2,3040.1,0.001]
[1765054819270,5.40963436,3040.2,3040.1,0.001]
[1765054820332,11.73560235,3040.2,3040.1,0.001]
[1765054820537,5.40963436,3040.2,3040.1,0.001]
[1765054820735,5.45075007,3040.2,3040.1,0.001]
[1765054821619,3.63037299,3040.2,3040.1,0.001]
[1765054822827,3.43925728,3040.2,3040.1,0.001]
[1765054823642,3.63037299,3040.2,3040.1,0.001]
[1765054824940,10.32835626,3040.2,3040.1,0.001]
[1765054827343,10.17835626,3040.2,3040.1,0.001]
[1765054827528,12.17504636,3040.2,3040.1,0.001]
[1765054828722,13.32619175,3040.2,3040.1,0.001]
[1765054829467,7.10509277,3040.2,3040.1,0.001]
[1765054831075,6.43709277,3040.2,3040.1,0.001]
[1765054831375,6.95509277,3040.2,3040.1,0.001]
[1765054831837,6.43709277,3040.2,3040.1,0.001]
[1765054832039,6.95509277,3040.2,3040.1,0.001]
[1765054835880,13.28868775,3040.2,3040.1,0.001]
[1765054836040,13.43868775,3040.2,3040.1,0.001]
[1765054836240,14.56978586,3040.2,3040.1,0.001]
[1765054839569,4.53285139,3040.2,3040.1,0.4513]
[1765054841045,4.53285139,3040.2,3040.1,0.001]
[1765054844644,4.68285139,3040.2,3040.1,0.001]
[1765054846290,4.83285139,3040.2,3040.1,0.001]
[1765054846493,6.78246218,3040.2,3040.1,0.001]
[1765054847262,6.63246218,3040.2,3040.1,0.001]
[1765054854120,6.78246218,3040.2,3040.1,0.001]
[1765054854503,6.63246218,3040.2,3040.1,0.001]
[1765054854706,7.03796618,3040.2,3040.1,0.001]
[1765054859121,7.18796618,3040.2,3040.1,0.001]
[1765054860423,7.03796618,3040.2,3040.1,0.001]
[1765054860793,6.88796618,3040.2,3040.1,0.001]
[1765054861022,6.88896618,3040.2,3040.1,0.9644]
[1765054861519,6.88896618,3040.2,3040.1,0.4701]
[1765054862099,4.01485139,3040.2,3040.1,1.1618]
[1765054862298,4.53385139,3040.2,3040.1,1.1618]
[1765054868236,4.53385139,3040.2,3040.1,0.001]
[1765054869605,4.53385139,3040.2,3040.1,0.9644]
[1765054870835,4.53385139,3040.2,3040.1,1.1618]
[1765054873512,3.80825728,3040.2,3040.1,1.1618]
[1765054878728,3.80825728,3040.2,3040.1,0.4701]
[1765054879038,4.96202654,3040.2,3040.1,0.4701]
[1765054879254,4.96202654,3040.2,3040.1,0.001]
[1765054879475,5.26202654,3040.2,3040.1,0.001]
[1765054879682,5.11202654,3040.2,3040.1,0.001]
[1765054879869,5.15314225,3040.2,3040.1,0.001]
[1765054880446,11.48689631,3040.2,3040.1,0.001]
[1765054880646,11.4457806,3040.2,3040.1,0.001]
[1765054881185,12.57687871,3040.2,3040.1,0.001]
[1765054881366,31.90426477,3040.2,3040.1,0.001]
[1765054881570,32.03601121,3040.2,3040.1,0.001]
[1765054882390,5.16862065,3040.2,3040.1,1.1446]
[1765054882560,4.53385139,3040.2,3040.1,1.1446]
[1765054883544,3.80825728,3040.2,3040.1,1.1446]
[1765054884051,3.28925728,3040.2,3040.1,1.1446]
[1765054884252,3.80825728,3040.2,3040.1,1.1446]
[1765054885248,0.519,3040.2,3040.1,1.1446]
[1765054887488,1.67014539,3040.2,3040.1,1.1446]
[1765054888167,1.7112611,3040.2,3040.1,1.1446]
[1765054889987,5.00051838,3040.2,3040.1,1.1446]
[1765054893783,4.95940267,3040.2,3040.1,1.1446]
[1765054900787,4.44009736,3040.5,3040.1,1.1446]
[1765054900959,1.15114539,3040.4,3040.2,0.4698]
[1765054901163,1.15114539,3040.4,3040.2,1.49840246]
[1765054901364,3.28885343,3040.6,3040.3,0.9526]
[1765054901678,1.15114539,3040.5,3040.3,0.4698]
[1765054901879,1.15114539,3040.5,3040.4,0.4698]
[1765054902079,1.15114539,3040.5,3040.4,0.9526]
[1765054902491,3.28885343,3040.6,3040.4,0.9526]
[1765054902787,3.28885343,3040.6,3040.5,0.9526]
[1765054903572,1.67014539,3040.7,3040.5,0.9526]
[1765054903768,0.519,3040.7,3040.6,0.9526]
[1765054904179,4.9588618,3040.7,3040.6,0.9526]
[1765054907367,4.9588618,3040.7,3040.6,0.4828]
[1765054908175,1.67014539,3040.7,3040.6,0.9526]
[1765054909275,3.28865241,3040.8,3040.6,0.4828]
[1765054909517,0.002,3041.8,3040.9,0.405504]
[1765054909824,0.002,3042.1,3040.9,0.405504]
[1765054909825,0.002,3042.1,3041.7,6.81655406]
[1765054910035,0.002,3042.1,3042.0,6.81655406]
[1765054910392,0.002,3042.1,3042.0,7.31615406]
[1765054910789,0.002,3042.1,3042.0,0.9824]
[1765054910990,0.002,3042.1,3042.0,1.71401541]
[1765054912942,0.002,3042.1,3042.0,11.33508044]
[1765054915140,0.002,3042.1,3042.0,1.71401541]
[1765054915341,0.002,3042.1,3042.0,0.4828]
[1765054917042,0.156,3042.1,3041.4,0.4665]
[1765054917216,1.15114539,3041.9,3041.4,0.4665]
[1765054917843,1.15114539,3041.9,3041.8,0.4889]
[1765054919320,1.15114539,3041.9,3041.8,0.9554]
[1765054921348,1.15114539,3041.9,3041.8,0.4889]
[1765054923945,4.59258085,3041.9,3041.4,0.4665]
[1765054924145,1.15114539,3041.7,3041.3,3.2880598]
[1765054924350,1.15114539,3041.7,3041.5,0.4665]
[1765054924518,1.15114539,3041.7,3041.1,0.519]
[1765054924519,1.15114539,3041.7,3041.1,0.4665]
[1765054924722,1.15114539,3041.5,3041.1,0.4665]
[1765054925534,1.15114539,3041.5,3041.4,0.4889]
[1765054928429,4.43902153,3041.5,3041.2,0.4665]
[1765054928878,1.15114539,3041.5,3041.2,0.4665]
[1765054931990,1.67014539,3042.0,3041.4,0.4889]
[1765054932140,1.15114539,3041.8,3041.6,0.4889]
[1765054932341,3.28751066,3041.9,3041.6,0.4889]
[1765054932533,1.15114539,3041.8,3041.7,0.9554]
[1765054936367,4.43867251,3041.8,3041.7,0.4889]
[1765054936570,4.43867251,3041.8,3041.5,0.4665]
[1765054936769,1.15114539,3041.6,3041.5,0.4665]
[1765054936947,1.15114539,3041.8,3041.5,0.4665]
[1765054937147,1.15114539,3041.8,3041.5,0.9554]
[1765054937348,4.43868579,3041.8,3041.6,0.4665]
[1765054939071,1.15114539,3041.8,3041.6,0.4665]
[1765054940167,3.28731167,3042.0,3041.7,0.4889]
[1765054940361,1.15114539,3041.9,3041.7,0.4889]
[1765054944872,1.15114539,3041.9,3041.7,0.9756]
[1765054945050,4.43857318,3041.9,3041.7,0.9756]
[1765054945250,4.43857318,3041.9,3041.5,0.4867]
[1765054945553,1.15114539,3041.7,3041.5,0.4867]
[1765054947660,1.15114539,3041.7,3041.6,0.4651]
[1765054949066,1.15114539,3041.7,3041.6,0.9518]
[1765054951488,4.43857318,3041.9,3041.6,0.9518]
[1765054952090,4.43857318,3041.9,3041.7,0.4867]
[1765054954453,4.43857318,3041.9,3041.8,0.4651]
[1765054954860,4.43857318,3041.9,3041.8,0.9518]
[1765054955665,4.43857318,3041.9,3041.8,0.4651]
[1765054959292,4.43857318,3041.9,3041.8,0.9518]
[1765054964799,3.28733154,3042.0,3041.8,0.9518]
[1765054965009,3.28733154,3042.0,3041.9,0.4867]
[1765054965189,3.28927002,3042.1,3041.9,0.9518]
[1765054965370,0.002,3042.1,3042.0,0.4651]
[1765054965563,0.002,3042.1,3042.0,0.9518]
[1765054966581,0.002,3042.1,3042.0,0.4651]
[1765054966786,0.002,3042.1,3042.0,0.9518]
[1765054972593,0.002,3042.1,3042.0,1.37573075]
[1765054975512,0.002,3042.1,3042.0,0.9518]
[1765054976807,0.002,3042.1,3041.7,0.4718]
[1765054977498,0.002,3042.1,3042.0,0.4737]
[1765054978616,0.002,3042.1,3042.0,0.9425]
[1765054981804,0.002,3042.1,3041.5,3.28781087]
[1765054981989,0.002,3042.1,3041.6,0.70946941]
[1765054982184,0.002,3042.1,3041.6,1.17826941]
[1765054982390,0.002,3042.1,3041.7,0.4688]
[1765054982587,0.154,3041.7,3041.2,0.89617721]
[1765054982791,0.154,3041.7,3041.0,3.80632007]
[1765054983003,1.15114539,3041.6,3041.2,0.4688]
[1765054983490,1.15114539,3041.8,3041.5,0.4774]
[1765054983693,1.15114539,3041.6,3041.5,0.4774]
[1765054984991,4.4386994,3041.8,3041.5,0.9462]
[1765054986014,3.28745886,3041.9,3041.5,0.9462]
[1765054986313,1.15114539,3041.8,3041.5,0.9462]
[1765054989539,4.43867685,3041.8,3041.5,0.9462]
[1765054990636,1.15114539,3041.8,3041.5,0.9462]
[1765054991751,1.15114539,3042.0,3041.7,0.4774]
[1765054991902,0.002,3042.1,3041.9,0.4774]
[1765054992101,0.002,3042.1,3042.0,0.4774]
[1765054994911,0.002,3042.1,3042.0,4.23351097]
[1765054997921,0.002,3042.1,3042.0,10.55789207]
[1765054998130,0.002,3042.1,3042.0,13.30986479]
[1765054999239,0.002,3042.1,3042.0,6.98548369]
[1765055002370,0.002,3042.1,3042.0,13.30619838]
[1765055003170,0.002,3042.1,3042.0,14.03179249]
[1765055005406,0.002,3042.1,3042.0,21.1439783]
[1765055005691,0.002,3042.1,3042.0,20.75801118]
[1765055006497,0.002,3042.1,3042.0,36.14378418]
[1765055006670,0.002,3042.1,3042.0,31.68811218]
[1765055007479,0.002,3042.1,3042.0,32.88789418]
[1765055007678,0.002,3042.1,3042.0,22.97571718]
[1765055008503,0.002,3042.1,3042.0,24.38513018]
[1765055008679,0.002,3042.1,3042.0,20.75801118]
[1765055009289,0.002,3042.1,3042.0,14.03179249]
[1765055009490,0.002,3042.1,3042.0,5.77798863]
[1765055009673,0.002,3042.1,3042.0,6.29598863]
[1765055009874,0.002,3042.1,3042.0,6.92287731]
[1765055010190,0.002,3042.1,3042.0,1.37518279]
[1765055010394,0.156,3042.1,3042.0,1.24359411]
[1765055011275,0.002,3042.1,3042.0,4.53090508]
[1765055012503,0.002,3042.1,3042.0,11.79951977]
[1765055014075,0.002,3042.1,3042.0,0.4953]
[1765055014387,0.156,3042.1,3041.9,3.80537757]
[1765055014583,0.154,3042.0,3041.9,3.80537757]
[1765055014898,0.002,3042.1,3041.9,3.80537757]
[1765055016979,0.002,3042.1,3042.0,0.4953]
[1765055017713,0.002,3042.1,3041.9,4.25797757]
[1765055017879,0.002,3042.1,3041.9,3.80537757]
[1765055019294,0.002,3042.1,3041.9,4.55993695]
[1765055021912,0.154,3042.0,3041.5,0.42342649]
[1765055022213,0.154,3042.0,3041.5,0.94142649]
[1765055022413,0.154,3042.0,3041.5,1.39402649]
[1765055022596,0.154,3042.0,3041.5,0.94142649]
[1765055022918,0.154,3042.0,3041.8,3.28752234]
[1765055024333,0.154,3042.0,3041.7,3.28761157]
[1765055024611,0.002,3042.1,3041.8,0.37402116]
[1765055025192,0.002,3042.1,3041.8,0.82662116]
[1765055025493,0.154,3041.9,3041.8,0.37402116]
[1765055026496,0.154,3041.9,3041.5,1.09542649]
[1765055026827,0.154,3041.8,3041.5,4.22920375]
[1765055028026,0.154,3041.6,3041.1,0.518]
[1765055028234,1.15114539,3041.7,3041.1,1.69619411]
[1765055028458,1.15114539,3041.7,3041.3,3.28800196]
[1765055028608,1.15114539,3041.7,3041.2,3.28817572]
[1765055028809,1.15114539,3041.7,3041.3,0.82726268]
[1765055029610,1.15114539,3041.7,3041.3,1.27986268]
[1765055031442,1.15114539,3041.7,3041.3,4.56788779]
[1765055032334,1.15114539,3041.7,3041.3,0.82726268]
[1765055032524,1.30514539,3041.7,3041.3,0.82726268]
[1765055033639,1.30514539,3041.7,3041.3,4.1153235]
[1765055034132,1.15114539,3041.7,3041.3,4.1153235]
[1765055036345,0.154,3041.4,3040.9,0.98719119]
[1765055036640,3.28740166,3042.0,3041.2,9.60881253]
[1765055036941,3.28740166,3042.0,3041.4,6.32071469]
[1765055037324,0.98719119,3041.9,3041.4,6.80391469]
[1765055037734,0.98719119,3041.9,3041.5,0.4832]
[1765055038535,4.27463094,3041.9,3041.5,0.4832]
[1765055039541,3.28924534,3042.1,3041.5,4.14816525]
[1765055039736,3.28924534,3042.1,3041.5,0.86031855]
[1765055039940,1.15114539,3042.0,3041.5,0.4832]
[1765055040844,4.43846441,3042.0,3041.5,0.4832]
[1765055041543,1.15114539,3042.0,3041.5,3.77103694]
[1765055041841,0.002,3042.1,3041.9,0.4611]
[1765055042618,0.002,3042.1,3041.9,0.9443]
[1765055043644,0.002,3042.1,3042.0,7.26501469]
[1765055043821,0.002,3042.1,3042.0,1.72270147]
[1765055045319,0.002,3042.1,3042.0,8.04341616]
[1765055045519,0.002,3042.1,3042.0,11.33072713]
[1765055050021,0.002,3042.1,3042.0,12.05632124]
[1765055051631,0.002,3042.1,3042.0,31.82932293]
[1765055051847,0.002,3042.1,3042.0,48.76300305]
[1765055052046,0.002,3042.1,3042.0,48.89457052]
[1765055052329,0.002,3042.1,3042.0,31.0787334]
[1765055052849,0.002,3042.1,3042.0,31.1666294]
[1765055053351,0.002,3042.1,3042.0,31.5721334]
[1765055053654,0.002,3042.1,3042.0,31.95810052]
[1765055053965,0.002,3042.1,3042.0,32.21772452]
[1765055054828,0.002,3042.1,3042.0,32.86786252]
[1765055055027,0.002,3042.1,3042.0,33.12199152]
[1765055055256,0.002,3042.1,3042.0,32.45641452]
[1765055055457,0.002,3042.1,3042.0,29.6212134]
[1765055055628,0.002,3042.1,3042.0,26.1885824]
[1765055056035,0.156,3042.1,3042.0,1.50399558]
[1765055056248,0.156,3042.1,3042.0,0.519]
[1765055056743,0.31,3042.1,3041.8,0.519]
[1765055056948,0.154,3041.9,3041.8,0.519]
[1765055057526,0.154,3041.9,3041.8,4.53212123]
[1765055058027,0.308,3041.9,3041.2,6.32071469]
[1765055058333,0.154,3041.4,3040.8,6.32071469]
[1765055058534,0.154,3041.8,3041.2,6.32071469]
[1765055058738,0.154,3041.8,3041.3,0.4611]
[1765055058938,3.28735708,3042.0,3041.3,3.74916245]
[1765055059132,4.31285132,3042.0,3041.3,3.74916245]
[1765055059655,0.154,3041.4,3041.1,4.01383683]
[1765055059964,0.154,3041.4,3041.2,3.28817311]
[1765055060125,0.308,3041.4,3040.8,6.80261469]
[1765055060328,0.154,3041.4,3040.9,0.519]
[1765055060530,0.154,3041.4,3040.9,1.24459411]
[1765055060857,0.154,3041.5,3040.5,0.4829]
[1765055060858,0.154,3041.0,3040.5,0.4829]
[1765055061163,0.154,3041.0,3040.7,0.72559411]
[1765055061547,0.154,3041.3,3040.7,1.20749411]
[1765055062049,3.44188767,3041.5,3040.9,0.72559411]
[1765055062242,0.154,3041.5,3040.9,0.72559411]
[1765055062438,0.154,3041.5,3040.7,1.20749411]
[1765055062632,1.15114539,3041.4,3040.7,2.74853324]
[1765055063166,0.154,3041.5,3040.9,0.72559411]
[1765055063331,1.15114539,3041.4,3040.9,0.72559411]
[1765055064042,0.154,3041.0,3040.5,0.001]
[1765055064226,0.154,3040.9,3040.7,3.28871441]
[1765055064432,0.154,3040.9,3040.6,3.28878762]
[1765055066929,1.15114539,3041.2,3040.6,3.77068762]
[1765055067566,0.154,3041.3,3040.6,7.05951219]
[1765055067757,1.15114539,3041.4,3040.7,0.75795122]
[1765055067944,1.15114539,3041.4,3040.7,1.23985122]
[1765055068145,4.43910592,3041.4,3040.7,1.23985122]
[1765055068348,4.43910592,3041.4,3040.7,0.4819]
[1765055069471,1.15114539,3041.4,3040.8,3.28860826]
[1765055069638,0.98736989,3041.5,3040.9,0.519]
[1765055069974,1.82414539,3041.8,3040.9,1.0009]
[1765055070267,1.82414539,3041.8,3041.0,1.87231778]
[1765055070966,1.82414539,3041.8,3041.1,0.4819]
[1765055071164,1.15114539,3041.7,3041.1,0.4819]
[1765055071368,3.28734026,3042.0,3041.1,6.80796128]
[1765055071553,1.15114539,3041.9,3041.2,6.57635144]
[1765055071775,1.15114539,3041.9,3041.3,1.85743127]
[1765055071943,1.15314539,3042.1,3041.3,3.06492538]
[1765055072258,1.15314539,3042.1,3041.4,0.4819]
[1765055072442,1.15314539,3042.1,3041.4,6.80796128]
[1765055072970,1.15314539,3042.1,3041.5,0.4819]
[1765055073339,4.44038216,3042.1,3041.5,0.4819]
[1765055073678,1.15314539,3042.1,3041.5,3.76966263]
[1765055074568,1.15314539,3042.1,3041.5,8.65418437]
[1765055074933,1.15314539,3042.1,3041.5,5.36633299]
[1765055075558,4.44034858,3042.1,3041.5,5.36633299]
[1765055075760,1.15314539,3042.1,3041.5,5.36633299]
[1765055076172,1.15314539,3042.1,3041.6,0.4819]
[1765055076349,0.002,3042.1,3042.0,0.475]
[1765055078575,0.002,3042.1,3042.0,0.9569]
[1765055081579,0.002,3042.1,3042.0,10.57027225]
[1765055083591,0.002,3042.1,3042.0,11.70137036]
[1765055083879,0.002,3042.1,3042.0,12.68810697]
[1765055084047,0.002,3042.1,3042.0,14.72951677]
[1765055085754,0.002,3042.1,3042.0,35.95055377]
[1765055086076,0.002,3042.1,3042.0,26.36912077]
[1765055086870,0.002,3042.1,3042.0,30.07783977]
[1765055087975,0.002,3042.1,3042.0,31.67911477]
[1765055088366,0.002,3042.6,3042.2,0.72559411]
[1765055088568,0.002,3042.6,3042.5,6.99826128]
[1765055088879,0.002,3042.6,3042.5,8.95748152]
[1765055089252,0.002,3042.6,3042.5,9.08903082]
[1765055089455,0.002,3042.6,3042.5,9.49453482]
[1765055091777,0.002,3042.6,3042.5,12.78130556]
[1765055093785,0.002,3042.8,3042.7,26.2030367]
[1765055093974,0.002,3043.5,3043.0,22.06438711]
[1765055094160,0.002,3043.5,3043.0,29.24241551]
[1765055094360,0.002,3043.5,3043.0,29.85263064]
[1765055094560,0.002,3043.5,3043.0,28.04220664]
[1765055094756,0.002,3043.5,3043.0,30.8464273]
[1765055094962,0.002,3043.5,3043.0,11.33759518]
[1765055095162,0.002,3043.5,3043.0,8.53337452]
[1765055095387,0.002,3043.5,3043.0,11.84964652]
[1765055095589,0.002,3043.5,3043.0,7.64917052]
[1765055095765,0.002,3043.5,3043.0,8.16817052]
[1765055095970,0.002,3043.5,3043.0,11.93310121]
[1765055096169,0.002,3043.5,3043.0,13.57016035]
[1765055097989,3.46601274,3044.2,3043.4,6.32606128]
[1765055098158,0.1405,3044.1,3043.5,3.80469081]
[1765055098359,0.04055944,3044.2,3043.7,6.32606128]
[1765055098796,0.18105944,3044.2,3043.7,6.32606128]
[1765055098961,0.18105944,3044.2,3043.7,7.81545257]
[1765055100492,0.18105944,3044.2,3043.7,11.10084654]
[1765055100995,1.29164539,3043.8,3043.5,0.98637001]
[1765055101214,0.1405,3043.6,3042.8,6.32606128]
[1765055101490,0.1405,3043.6,3043.1,6.32606128]
[1765055101676,0.1405,3043.6,3043.2,0.63260613]
[1765055101879,0.1405,3043.6,3043.4,6.32606128]
[1765055102091,0.1405,3043.3,3043.2,0.63260613]
[1765055102299,3.32551872,3044.2,3043.2,1.63230613]
[1765055102596,0.04055944,3044.2,3043.4,6.32606128]
[1765055102801,0.04055944,3044.2,3043.7,6.32606128]
[1765055103161,0.18105944,3044.2,3043.7,6.32606128]
[1765055103474,0.04055944,3044.2,3043.6,0.519]
[1765055103660,0.04055944,3044.2,3043.5,1.28978748]
[1765055103661,0.04055944,3044.2,3043.5,1.78088748]
[1765055103862,0.1405,3043.6,3043.5,1.28978748]
[1765055104179,1.15114539,3044.1,3043.5,1.80878748]
[1765055104386,1.15114539,3044.1,3043.6,0.25343816]
[1765055104581,1.15114539,3044.1,3043.6,3.53900893]
[1765055104793,0.1405,3044.1,3043.6,3.53900893]
[1765055105195,0.1405,3044.1,3043.6,0.25343816]
[1765055105375,0.1405,3044.1,3043.6,3.53901171]
[1765055106300,0.04055944,3044.2,3043.7,7.06043074]
[1765055106658,0.04055944,3044.2,3043.8,6.57073394]
[1765055107074,0.04055944,3044.2,3043.8,3.28536697]
[1765055107461,0.04055944,3044.2,3043.8,6.57073394]
[1765055107863,0.04055944,3044.2,3043.9,0.519]
[1765055108883,0.04055944,3044.2,3043.9,3.80417323]
[1765055109410,0.0405,3044.7,3044.1,0.4807]
[1765055109705,0.0405,3044.7,3044.0,6.81716128]
[1765055109706,0.0405,3044.7,3043.9,7.87182307]
[1765055109873,0.1405,3044.6,3043.9,7.87182307]
[1765055110069,0.0405,3044.7,3044.0,6.32606128]
[1765055110280,0.0405,3044.7,3044.1,1.46889844]
[1765055110482,0.0405,3044.7,3044.1,2.15669844]
[1765055110900,3.2860039,3045.1,3044.1,2.15669844]
[1765055110901,0.002,3045.1,3044.6,0.4807]
[1765055111108,0.002,3045.1,3044.7,6.32606128]
[1765055111273,0.002,3045.1,3044.6,1.4908]
[1765055111598,0.002,3045.1,3044.7,6.81716128]
[1765055111911,0.1405,3044.7,3044.6,1.30068613]
[1765055112081,0.1425,3045.1,3044.6,0.519]
[1765055112392,0.002,3045.1,3044.6,0.519]
[1765055112592,0.002,3045.1,3044.6,7.33616128]
[1765055112774,0.002,3045.1,3044.7,3.28439583]
[1765055112975,0.002,3045.1,3045.0,0.4807]
[1765055113192,0.002,3045.1,3045.0,2.94618024]
[1765055114465,0.002,3045.1,3045.0,18.07827324]
[1765055114667,0.002,3045.1,3045.0,19.22941863]
[1765055114914,0.002,3045.1,3045.0,20.84334548]
[1765055115095,0.002,3045.1,3045.0,8.80294848]
[1765055115283,0.002,3045.1,3045.0,6.23025248]
[1765055115467,0.002,3045.1,3045.0,12.19544548]
[1765055115820,0.002,3045.1,3045.0,6.63575648]
[1765055116029,0.002,3045.1,3045.0,5.73915248]
[1765055116183,0.002,3045.1,3045.0,6.23025248]
[1765055116929,0.1425,3045.1,3045.0,0.72559411]
[1765055117220,0.1425,3045.1,3045.0,0.519]
[1765055118197,0.002,3045.1,3045.0,4.28377224]
[1765055119134,0.002,3045.1,3045.0,5.50046635]
[1765055120695,0.002,3045.1,3045.0,4.00966635]
[1765055120895,0.002,3045.1,3044.3,6.56965476]
[1765055120896,0.1425,3045.1,3044.3,6.56965476]
[1765055121121,0.1425,3045.1,3044.4,2.36105959]
[1765055121317,0.1425,3045.1,3044.4,1.84205959]
[1765055121521,0.1425,3045.1,3044.5,0.519]
[1765055121522,0.1405,3045.0,3044.5,0.519]
[1765055121718,0.002,3045.1,3044.5,0.9785]
[1765055122601,0.002,3045.1,3044.5,0.519]
[1765055122798,0.181,3044.6,3044.5,0.519]
[1765055123013,0.181,3044.6,3044.5,4.5292057]
[1765055123341,0.181,3044.6,3044.4,0.72559411]
[1765055123342,3.46558698,3044.6,3043.8,0.1911]
[1765055123504,0.1405,3044.5,3043.9,0.519]
[1765055123706,0.1405,3044.5,3044.0,3.28506454]
[1765055124023,0.1405,3044.5,3043.6,0.4595]
[1765055124024,0.1405,3044.1,3043.1,3.28606191]
[1765055124227,0.1405,3044.5,3043.2,0.4595]
[1765055124228,0.1405,3044.0,3043.2,0.4595]
[1765055124434,0.1405,3044.0,3043.7,3.28546196]
[1765055124748,6.609531,3044.6,3043.7,3.28546196]
[1765055124749,3.32506296,3044.6,3043.7,0.519]
[1765055124902,0.1405,3044.5,3043.9,3.28519084]
[1765055125095,3.42516729,3044.5,3043.7,0.519]
[1765055125294,0.1405,3043.8,3043.7,0.519]
[1765055126040,0.1405,3043.8,3043.0,0.1967]